[Event "Israeli Team-ch 2023"]
[Site "Petah Tikva"]
[Date "2023.01.20"]
[Round "3.29"]
[White "Bakalchuk, Johnatan"]
[Black "Oratovsky, Michael"]
[Result "1-0"]
[ECO "A20"]
[WhiteElo "2442"]
[BlackElo "2422"]
[Annotator "TA"]
[PlyCount "133"]
[EventDate "2023.01.13"]
[EventCountry "ISR"]
[SourceTitle "playchess.com"]
[Source "ChessBase"]
[SourceQuality "1"]
[TimeControl "40/5400+30:1800+30"]

{[%evp 9,133,1,15,0,0,0,25,6,8,11,10,13,28,26,35,39,40,0,0,0,0,-31,4,0,0,1,9,6,0,0,13,8,15,9,20,20,22,16,16,20,16,20,31,13,25,29,39,0,39,0,66,0,0,0,21,0,69,22,92,92,132,132,132,132,186,130,127,110,118,123,120,126,119,58,149,57,57,60,43,19,23,19,18,27,71,17,16,16,16,22,15,0,139,97,212,211,829,823,868,808,962,925,1832,1832,1832,1506,1661,1498,29961,29962,29963,29962,29965,29964,29961,29963,7085,7034,29973,29974,29975,29977,29980,29981,29979,29980]} 1. c4 {[%emt 0:00:30]} e5 {[%emt 0:02:33]} 2. g3 {[%emt 0:04:22]} c6 {[%emt 0:13:12]} 3. a3 {[%emt 0:03:44]} Nf6 {[%emt 0:31:16]} 4. Bg2 {[%emt 0:00:11]} d5 {[%emt 0:07:43]} 5. cxd5 {[%emt 0:00:11]} cxd5 {[%emt 0:00:05]} 6. d4 $1 {[%emt 0:00:29] A20: English Opening: 1...e5.} e4 {[%emt 0:00:15]} 7. Nc3 {[%emt 0:02:37]} Bd6 {[%emt 0:12:31]} 8. Bg5 {[%emt 0:09:53] Threatens to win with Bxf6. White has an edge.} Nbd7 {[%emt 0:01:24]} 9. Qa4 {[%emt 0:07:27]} Qb6 {[%emt 0:06:12]} 10. Qb5 {[%emt 0:04:59] [#]} Qxb5 $146 {[%emt 0:00:50]} (10... Qxd4 11. Rd1 Qb6 12. Bxf6 gxf6 13. Rxd5 $16 (13. Qxd5 Qxb2 14. Nxe4 Be7 $14)) ({Predecessor:} 10... O-O 11. e3 h6 12. Qxb6 axb6 13. Bf4 Bxf4 14. gxf4 Nb8 15. Nge2 Nc6 16. Nc1 Re8 {0-1 Heinbuch,D (2355)-Petzold,K BL2-West 9596 1995 [7]}) 11. Nxb5 {[%emt 0:00:18]} Bb8 {[%emt 0:00:33]} 12. Rc1 {[%emt 0:02:24]} O-O {[%emt 0:07:17]} 13. Nc7 {[%emt 0:09:23]} Bxc7 {[%emt 0:00:10]} 14. Rxc7 {[%emt 0:00:06]} h6 {[%emt 0:00:33]} 15. Bd2 {[%emt 0:13:40]} Nb8 {[%emt 0:05:38]} 16. Rc2 {[%emt 0:11:37]} Nc6 {[%emt 0:00:52]} 17. e3 {[%emt 0:00:02]} Bd7 {[%emt 0:02:59]} 18. Ne2 {[%emt 0:03:18]} Rac8 {[%emt 0:02:21][%cal Oc6b4]} 19. Rc1 {[%emt 0:06:36]} b6 {[%emt 0:02:01]} 20. O-O {[%emt 0:00:32]} Rfd8 {[%emt 0:01:30]} 21. h3 {[%emt 0:02:25]} h5 {[%emt 0:00:27]} 22. h4 {[%emt 0:03:50]} Kf8 {[%emt 0:00:33]} 23. Rc3 {[%emt 0:00:26]} Ne7 {[%emt 0:00:33]} 24. Ra1 {[%emt 0:01:52]} Rxc3 {[%emt 0:00:26]} 25. Nxc3 {[%emt 0:02:24]} Nc6 {[%emt 0:00:11]} 26. Nb5 {[%emt 0:01:12]} Ne8 {[%emt 0:00:54]} 27. Bf1 {[%emt 0:00:59]} Ke7 {[%emt 0:00:15]} 28. a4 {[%emt 0:02:08]} Ke6 {[%emt 0:00:39]} 29. Rc1 {[%emt 0:02:21]} a6 {[%emt 0:00:36]} (29... a5 $11) 30. Na3 {[%emt 0:04:05] White is more active.} (30. Nc3 $1 $14) 30... Ra8 $11 {[%emt 0:00:17]} 31. b3 {[%emt 0:01:27]} Nd6 {[%emt 0:00:26]} 32. Nb1 {[%emt 0:00:08]} b5 {[%emt 0:00:26]} (32... a5 $11) 33. axb5 {[%emt 0:00:21]} (33. Nc3 $14) 33... axb5 {[%emt 0:00:40]} (33... Nxb5 $11 34. Rc5 Rb8) 34. Nc3 $1 $16 {[%emt 0:00:33][%cal Oc3d5]} Ne7 {[%emt 0:00:37]} 35. Ne2 {[%emt 0:00:13]} Ng6 {[%emt 0:00:23]} 36. Bb4 {[%emt 0:00:09]} Ra2 {[%emt 0:00:32]} (36... Ra7 $16 {is a better defense.} 37. g4 Ne8) 37. Nc3 {[%emt 0:01:26]} (37. g4 $18) 37... Rb2 {[%emt 0:00:02]} 38. Bxd6 {[%emt 0:00:37]} Kxd6 {[%emt 0:00:05]} 39. Nxb5+ {[%emt 0:00:11]} Bxb5 {[%emt 0:00:19]} 40. Bxb5 {[%emt 0:00:01][%mdl 4096] Endgame Black must now prevent Rc6+. KRB-KRN} Ne7 {[%emt 0:01:39] Wards off Rc6+} 41. Ba4 {[%emt 0:04:47]} (41. Ra1 $16) 41... f6 {[%emt 0:05:47]} (41... g6 $14) 42. Rc5 {[%emt 0:01:53]} ({Better is} 42. Ra1 $16) 42... Rb1+ $14 {[%emt 0:18:03]} 43. Kg2 {[%emt 0:00:01]} Rb2 {[%emt 0:00:06]} 44. Kf1 {[%emt 0:10:25]} Rb1+ $1 {[%emt 0:02:09]} 45. Ke2 {[%emt 0:00:14]} Rb2+ $1 {[%emt 0:00:10]} 46. Ke1 {[%emt 0:00:56]} g5 {[%emt 0:03:41]} 47. Ra5 {[%emt 0:00:46]} (47. hxg5 $1 $16 fxg5 48. Ra5) 47... gxh4 $11 {[%emt 0:02:05]} 48. Ra6+ {[%emt 0:00:09]} Kc7 {[%emt 0:00:02] ( -> ...h3)} 49. gxh4 {[%emt 0:00:42]} (49. Rxf6 $2 h3 50. Rh6 h2 51. Rxh5 Rb1+ 52. Kd2 h1=Q 53. Rxh1 Rxh1 $19) 49... Nf5 {[%emt 0:01:18]} 50. Be8 {[%emt 0:05:34]} Rb1+ {[%emt 0:01:40]} (50... Nxh4 $11 {keeps the balance.} 51. Rc6+ (51. Bxh5 Rb1+ 52. Bd1 Nf3+ 53. Ke2 Rb2+ 54. Kf1 Rb1 $11) (51. Rxf6 Nf3+ 52. Kf1 Rxb3 $11) 51... Kd8 52. Bxh5 Ke7) 51. Kd2 $16 {[%emt 0:03:58] Black is now going downhill.} Rb2+ {[%emt 0:00:12] [#]} (51... Rxb3 $16 {might work better.} 52. Rxf6 (52. Bxh5 Rb6 $16) 52... Nxh4) 52. Kc1 $1 $18 {[%emt 0:03:10]} Rxf2 {[%emt 0:00:42]} (52... Rxb3 53. Rxf6 Nxh4 54. Rc6+ (54. Bxh5 Rb6 $16) 54... Kb8 55. Bxh5 Rb5) 53. Rxf6 {[%emt 0:00:16]} Rf1+ {[%emt 0:00:14] [#]} 54. Kb2 $1 {[%emt 0:02:08]} (54. Kd2 Nxe3 55. Rc6+ Kd8 $14) 54... Kd8 {[%emt 0:00:54]} 55. Bg6 {[%emt 0:03:22]} Nxe3 {[%emt 0:00:19]} 56. Rxf1 {[%emt 0:00:06]} Nxf1 {[%emt 0:00:02]} 57. Bxh5 {[%emt 0:00:07] KB-KN} Ng3 {[%emt 0:00:44]} 58. Bg4 {[%emt 0:00:50]} e3 {[%emt 0:00:55]} 59. Kc2 {[%emt 0:00:36]} Ne4 {[%emt 0:00:24]} 60. Bf3 {[%emt 0:00:44]} Nd6 {[%emt 0:00:23]} 61. Kd3 {[%emt 0:00:22]} (61. Bxd5 Nb5 $16) 61... Nf5 {[%emt 0:00:11]} 62. h5 {[%emt 0:00:30]} ({Worse is} 62. Bxd5 Nxd4 63. h5 (63. Kxd4 $2 e2 $19) 63... e2 $11) 62... Ke7 {[%emt 0:00:01]} 63. b4 {[%emt 0:00:22][%cal Bb3b4,Bb4b5,Bb5b6][%mdl 32] Intending b5 and mate.} ({Not} 63. Bxd5 Nxd4 64. h6 (64. Kxd4 $2 {too greedy.} e2 $19) 64... e2 $11) 63... Kd6 {[%emt 0:00:26]} 64. b5 {[%emt 0:00:41] White mates.} Kc7 {[%emt 0:00:11]} 65. Bg4 {[%emt 0:00:31]} Nh6 {[%emt 0:00:39]} 66. Be6 {[%emt 0:00:20]} Kd6 {[%emt 0:00:58] [#]} 67. b6 $1 {[%emt 0:00:14] Weighted Error Value: White=0.13 (very precise) /Black=0.36} 1-0

[Event "Israeli Team-ch 2023"]
[Site "Petah Tikva"]
[Date "2023.01.20"]
[Round "3.30"]
[White "Guz, Ari"]
[Black "Karp, Ilya"]
[Result "1-0"]
[ECO "D00"]
[WhiteElo "2306"]
[BlackElo "2392"]
[Annotator "TA"]
[PlyCount "62"]
[EventDate "2023.01.13"]
[EventCountry "ISR"]
[SourceTitle "playchess.com"]
[Source "ChessBase"]
[SourceQuality "1"]
[TimeControl "40/5400+30:1800+30"]

{[%evp 9,62,-9,18,0,0,-15,0,0,0,0,0,0,0,0,0,0,0,0,28,30,49,43,50,33,33,33,37,33,34,29,35,34,56,74,58,48,48,62,129,116,113,114,116,129,118,133,131,141,376,333,449,446,29980,29980,29988]} 1. d4 {[%emt 0:01:05]} Nf6 {[%emt 0:01:20]} 2. Nc3 {[%emt 0:00:46]} d5 {[%emt 0:06:10]} 3. Bf4 {[%emt 0:00:46]} g6 {[%emt 0:01:47]} 4. Nb5 {[%emt 0:00:37]} Na6 {[%emt 0:00:18][%cal Bb8a6,Ba6c7,Bc7e8,Be8d6,Bd6e4][%mdl 32]} 5. e3 {[%emt 0:00:27]} Bg7 {[%emt 0:00:20]} 6. Nf3 {[%emt 0:03:08] D00: 1 d4 d5: Unusual lines.} O-O {[%emt 0:00:07] 6...0-0 scores better than 6...c6.} 7. h3 {[%emt 0:00:39]} c6 {[%emt 0:00:58]} 8. Nc3 {[%emt 0:00:09] The position is equal.} Nc7 {[%emt 0:00:04][%cal Oc6c5]} 9. Be2 {[%emt 0:00:09]} Nce8 {[%emt 0:00:10]} 10. O-O {[%emt 0:00:11]} Nd6 {[%emt 0:00:04]} 11. a4 {[%emt 0:00:14]} a5 {[%emt 0:00:19] [#]} 12. b3 $146 {[%emt 0:00:47]} ({Predecessor:} 12. Nb1 Nfe4 13. Nbd2 Bf5 14. c4 Nxd2 15. Nxd2 Be6 16. c5 Ne8 17. Qb3 Bc8 18. Qc3 {1-0 Bluebaum,M (2639)-Hansen,E (2606) Speed Chess GP1 blitz 2021 (8)}) 12... Nde4 {[%emt 0:11:42]} 13. Qe1 {[%emt 0:23:09]} Re8 {[%emt 0:10:54]} 14. Nxe4 {[%emt 0:01:52]} dxe4 {[%emt 0:15:12]} 15. Ne5 {[%emt 0:02:32]} Nd5 {[%emt 0:00:05]} 16. Bh2 {[%emt 0:03:44]} Be6 {[%emt 0:02:05]} 17. Qd2 {[%emt 0:03:37]} Qb6 {[%emt 0:03:31]} 18. Rfc1 {[%emt 0:10:44]} Red8 {[%emt 0:06:24]} 19. Nc4 {[%emt 0:02:44]} Qa7 {[%emt 0:01:26]} 20. c3 {[%emt 0:03:06]} Rac8 {[%emt 0:03:51]} 21. b4 {[%emt 0:03:40]} b6 {[%emt 0:06:08][%cal Bb7b6,Bb6a5][%mdl 32]} 22. bxa5 {[%emt 0:02:44]} bxa5 {[%emt 0:00:01]} 23. Rab1 {[%emt 0:00:49]} c5 {[%emt 0:02:56]} (23... Bd7 $14) 24. Rb5 $16 {[%emt 0:01:40]} Nxc3 {[%emt 0:00:29][%mdl 64] [#] Remove Defender} 25. Qxc3 {[%emt 0:05:38] Hoping for Nb6.} (25. Rxc3 cxd4 26. exd4 (26. Rxa5 $2 dxc3 $19) 26... Bxd4 $17) 25... cxd4 {[%emt 0:00:24]} 26. exd4 {[%emt 0:03:00]} (26. Qxa5 $2 {loses.} Qxa5 27. Rxa5 d3 $19) 26... Bxd4 {[%emt 0:00:28]} 27. Qxa5 {[%emt 0:02:15]} Bxf2+ {[%emt 0:07:08] [#]} 28. Kf1 $1 {[%emt 0:00:02]} Bxc4 $2 {[%emt 0:08:21] Black cannot hold the game after this.} (28... Qxa5 $16 29. Rxa5 Bd4) 29. Rxc4 {[%emt 0:00:42]} ({Worse is} 29. Bxc4 Qe3 30. Rbb1 Bh4 $17) 29... Qe3 {[%emt 0:02:45]} 30. Rd5 {[%emt 0:00:25]} Re8 {[%emt 0:02:33]} (30... Qb6 $18 31. Qxb6 (31. Rxe4 $2 {is the wrong capture.} Rc1+ $19) 31... Bxb6 32. Rxd8+ Rxd8 33. Rxe4 Ra8) 31. Rxc8 {[%emt 0:00:40]} Rxc8 {[%emt 0:00:13] Weighted Error Value: White=0.02 (flawless) /Black=0.48} 1-0

[Event "Israeli Team-ch 2023"]
[Site "Petah Tikva"]
[Date "2023.01.20"]
[Round "3.31"]
[White "Dardha, Daniel"]
[Black "Manor, Ilan"]
[Result "1-0"]
[ECO "A37"]
[WhiteElo "2613"]
[BlackElo "2464"]
[Annotator "TA"]
[PlyCount "69"]
[EventDate "2023.01.13"]
[EventCountry "ISR"]
[SourceTitle "playchess.com"]
[Source "ChessBase"]
[SourceQuality "1"]
[TimeControl "40/5400+30:1800+30"]

{[%evp 14,69,20,10,31,20,30,12,41,41,38,36,35,43,32,31,40,28,27,-3,9,0,22,0,0,0,80,83,184,176,229,212,226,221,222,190,286,223,506,503,492,475,434,335,353,288,295,308,366,335,434,443,462,462,458,456,432,421]} 1. Nf3 {[%emt 0:09:39]} g6 {[%emt 0:04:30]} 2. c4 {[%emt 0:02:07]} Bg7 {[%emt 0:00:07]} 3. Nc3 {[%emt 0:00:49]} c5 {[%emt 0:00:33]} 4. g3 {[%emt 0:03:59]} Nc6 {[%emt 0:01:21]} 5. Bg2 {[%emt 0:00:17]} e5 {[%emt 0:00:04]} 6. a3 {[%emt 0:01:59]} a5 {[%emt 0:00:17]} 7. O-O {[%emt 0:07:27] 7.d3 is more advanced technology.} Nge7 {[%emt 0:00:13]} 8. Ne1 {[%emt 0:00:32]} O-O {[%emt 0:07:11] A37: Symmetrical English vs ...g6: 4 Bg2 Bg7 5 Nf3.} 9. Nc2 {[%emt 0:01:56]} d6 {[%emt 0:01:17]} 10. d3 {[%emt 0:01:35]} h6 {[%emt 0:14:50] The position is equal.} 11. Rb1 {[%emt 0:01:33]} a4 {[%emt 0:07:20]} 12. Ne3 {[%emt 0:01:59]} Nd4 {[%emt 0:02:06]} 13. Ned5 {[%emt 0:15:08]} Nxd5 {[%emt 0:00:17]} 14. Bxd5 {[%emt 0:01:26]} Bh3 {[%emt 0:13:20]} 15. Re1 {[%emt 0:10:04]} Qd7 {[%emt 0:02:19] [#]} 16. Ne4 $5 $146 {[%emt 0:02:01][%cal Oc1h6][%mdl 8] An interesting novelty.} ({Predecessor:} 16. b4 axb3 17. e3 Nc6 18. Qxb3 Rab8 19. Bd2 Kh7 20. Ne2 Be6 21. Qb5 h5 22. a4 {0-1 Ravi,L (2404)-Miezis,N (2524) Liverpool op 2007 (8)}) 16... Kh8 {[%emt 0:03:02]} 17. Nd2 {[%emt 0:00:19]} f5 {[%emt 0:05:28]} 18. e3 {[%emt 0:05:12]} Nc6 {[%emt 0:00:31]} 19. b3 {[%emt 0:02:14]} Rae8 {[%emt 0:19:15]} (19... axb3 $11 {remains equal.} 20. Qxb3 Rab8) 20. bxa4 $16 {[%emt 0:01:57] White leaves nothing to chance now.} e4 {[%emt 0:00:16]} 21. Bb2 $18 {[%emt 0:02:00]} Bxb2 {[%emt 0:09:26]} (21... exd3 $142 22. Qb3 Re7 23. Qxd3 Ra8 24. Bxg7+ Rxg7) 22. Rxb2 {[%emt 0:00:16]} Qg7 {[%emt 0:00:00]} 23. Qa1 {[%emt 0:04:41]} Re7 {[%emt 0:01:05]} 24. Rb6 {[%emt 0:03:14] Qxg7+ would be deadly.} Ne5 {[%emt 0:02:12]} (24... Qxa1 {is a better defense.} 25. Rxa1 exd3 26. Bxc6 bxc6 27. Rxc6 f4) 25. Rxd6 {[%emt 0:00:46]} Nxd3 $2 {[%emt 0:00:52]} (25... exd3 26. Qb1 (26. f4 Ng4 $16) 26... Kh7) 26. Rxg6 {[%emt 0:00:44][%cal Rg6h6][%mdl 64] [#] Pin, Double Attack} Qxa1 {[%emt 0:00:03]} 27. Rxa1 {[%emt 0:00:14]} Kh7 {[%emt 0:00:08]} 28. Rb6 {[%emt 0:00:13] And now Rab1 would win.} Ra8 {[%emt 0:00:34]} 29. Rxb7 {[%emt 0:04:39]} Rxb7 {[%emt 0:01:22]} 30. Bxb7 {[%emt 0:00:05]} Rxa4 {[%emt 0:00:07] [#]} 31. Nxe4 $1 {[%emt 0:02:57]} Rxc4 {[%emt 0:02:45]} (31... Kg7 32. Nd6) 32. Ba6 {[%emt 0:00:24] White is clearly winning.} Rxe4 {[%emt 0:00:06]} 33. Bxd3 {[%emt 0:00:06]} Ra4 {[%emt 0:00:15]} 34. Bb5 {[%emt 0:00:30]} Ra5 {[%emt 0:01:15]} 35. a4 {[%emt 0:00:12] Weighted Error Value: White=0.18 (very precise) /Black=0.37} 1-0

[Event "Israeli Team-ch 2023"]
[Site "Petah Tikva"]
[Date "2023.01.20"]
[Round "3.32"]
[White "Bernadskiy, Vitaliy"]
[Black "Gorodetzky, David"]
[Result "1-0"]
[ECO "C78"]
[WhiteElo "2609"]
[BlackElo "2492"]
[Annotator "TA"]
[PlyCount "79"]
[EventDate "2023.01.13"]
[EventCountry "ISR"]
[SourceTitle "playchess.com"]
[Source "ChessBase"]
[SourceQuality "1"]
[TimeControl "40/5400+30:1800+30"]

{[%evp 13,78,31,20,29,18,6,10,9,11,11,25,12,16,20,23,0,0,-10,-18,0,0,0,0,-6,0,0,0,0,0,0,0,0,0,-12,-12,-13,0,0,4,0,0,0,18,0,0,0,0,0,0,0,0,0,0,0,0,0,0,0,0,0,0,0,139,86,139,139,29999]} 1. e4 {[%emt 0:00:15]} e5 {[%emt 0:08:42]} 2. Nf3 {[%emt 0:00:05]} Nc6 {[%emt 0:00:07]} 3. Bb5 {[%emt 0:00:06]} a6 {[%emt 0:00:49]} 4. Ba4 {[%emt 0:00:06]} Nf6 {[%emt 0:00:25]} 5. O-O {[%emt 0:00:19]} Bc5 {[%emt 0:00:24]} 6. c3 {[%emt 0:00:05]} O-O {[%emt 0:00:41]} 7. d4 {[%emt 0:00:04]} Ba7 {[%emt 0:00:08]} 8. dxe5 {[%emt 0:00:08] C78: Ruy Lopez: Archangelsk and Möller Defences.} Nxe4 {[%emt 0:01:28]} 9. Bc2 {[%emt 0:00:05]} d5 {[%emt 0:04:19]} 10. exd6 {[%emt 0:00:07] The position is equal.} Nxd6 {[%emt 0:00:06]} (10... Bf5 {feels hotter.} 11. d7 Qe7 12. Bf4 Rad8) 11. Bg5 {[%emt 0:00:07]} (11. Qd3 Bf5 12. Qd1 Qf6 $15) 11... f6 {[%emt 0:03:19]} 12. Bf4 {[%emt 0:00:10]} Be6 {[%emt 0:17:07] [#] Inhibits Qd5.} 13. Re1 $146 {[%emt 0:09:03]} ({Predecessor:} 13. Qd3 Bf5 14. Qd5+ Kh8 15. Bxf5 Ne7 16. Qd3 Ndxf5 17. Qxd8 Rfxd8 18. Bxc7 Rd7 19. Bg3 {½-½ Narva,M (2276)-Ehlvest,J (2517) Eesti Masters rapid 2021 (1)}) 13... Bf7 {[%emt 0:13:03]} 14. Na3 {[%emt 0:01:44]} Qd7 {[%emt 0:04:26]} 15. Qb1 {[%emt 0:02:52]} g6 {[%emt 0:02:12]} 16. Bb3 {[%emt 0:00:06]} Rad8 {[%emt 0:02:13]} 17. Qc2 {[%emt 0:00:32]} Rfe8 {[%emt 0:08:55]} 18. Rxe8+ {[%emt 0:01:25]} Rxe8 {[%emt 0:01:04]} 19. Rd1 {[%emt 0:00:16]} Kg7 {[%emt 0:04:56]} 20. Kf1 {[%emt 0:05:21]} Ne5 {[%emt 0:05:16]} 21. Nxe5 {[%emt 0:01:10]} fxe5 {[%emt 0:00:02]} 22. Bg3 {[%emt 0:00:11]} Qf5 {[%emt 0:02:20]} 23. Bxf7 {[%emt 0:02:44]} Qxf7 {[%emt 0:01:21]} 24. Qb3 {[%emt 0:01:27]} Re6 {[%emt 0:01:27][%cal Oa7f2] [#] Hoping for ...Bxf2!} 25. Re1 {[%emt 0:06:50]} e4 {[%emt 0:05:08]} 26. Nc2 {[%emt 0:01:59]} Nf5 {[%emt 0:06:47] ( -> ...Nxg3+)} 27. Bf4 {[%emt 0:00:54]} b5 {[%emt 0:01:08]} (27... g5 $5 {[%cal Rg5f4]} 28. Be3 (28. Bxg5 $2 {is a self mate.} Ng3+ 29. hxg3 Qxf2#) (28. Qxb7 Bxf2 {[%mdl 64] Remove Defender} 29. Kxf2 gxf4 $15) 28... Nxe3+ 29. Nxe3 Rd6 $11) 28. Qd5 {[%emt 0:10:28]} c6 $1 {[%emt 0:00:31]} 29. Qd2 {[%emt 0:04:36]} e3 {[%emt 0:03:13]} 30. Nxe3 {[%emt 0:01:08]} Nxe3+ {[%emt 0:00:26]} 31. Bxe3 {[%emt 0:00:05]} Rxe3 {[%emt 0:00:10]} 32. Rxe3 {[%emt 0:00:11]} Bxe3 {[%emt 0:00:05]} 33. Qxe3 {[%emt 0:00:06]} Qxa2 $11 {[%emt 0:00:17][%mdl 4096] Endgame KQ-KQ} 34. b4 {[%emt 0:01:23]} Qb1+ {[%emt 0:02:40]} 35. Ke2 {[%emt 0:00:04]} Qc2+ {[%emt 0:00:10]} 36. Kf3 {[%emt 0:00:07]} Qf5+ {[%emt 0:01:42]} 37. Kg3 {[%emt 0:00:04]} Qc2 {[%emt 0:01:21]} (37... Kf6 $11 {keeps the balance.}) 38. h4 {[%emt 0:01:02]} (38. Qe7+ $142 Kg8 39. Qe8+ Kg7 40. Qd7+ (40. Qxc6 Qf5 $16) 40... Kf8 41. Qxc6 (41. Qxh7 Qxc3+ 42. f3 Qe1+ 43. Kh3 Qxb4 $11)) 38... h5 {[%emt 0:00:30]} ({Better is} 38... Qf5) 39. Qe5+ $16 {[%emt 0:00:36]} Kh6 $2 {[%emt 0:00:30][%mdl 8192] [#]} (39... Kg8 $16) 40. Qh8# {[%emt 0:01:17] Weighted Error Value: White=0.05 (flawless) /Black=0.33} 1-0

[Event "Israeli Team-ch 2023"]
[Site "Petah Tikva"]
[Date "2023.01.20"]
[Round "3.33"]
[White "Levin, Guy"]
[Black "Aizenberg, Benny"]
[Result "1/2-1/2"]
[ECO "A37"]
[WhiteElo "2391"]
[BlackElo "2348"]
[Annotator "TA"]
[PlyCount "62"]
[EventDate "2023.01.13"]
[EventCountry "ISR"]
[SourceTitle "playchess.com"]
[Source "ChessBase"]
[SourceQuality "1"]
[TimeControl "40/5400+30:1800+30"]

{[%evp 12,61,14,0,0,0,0,0,0,0,0,0,0,0,0,0,0,0,0,0,0,-30,-18,-16,-15,-111,-106,-155,-155,-153,-152,-154,0,0,0,0,46,39,36,0,24,24,24,24,22,0,0,0,0,0,0,0]} 1. c4 {[%emt 0:10:02]} g6 {[%emt 0:00:04]} 2. Nf3 {[%emt 0:00:20]} Bg7 {[%emt 0:00:05]} 3. g3 {[%emt 0:00:06]} c5 {[%emt 0:00:03]} 4. Bg2 {[%emt 0:00:05]} Nc6 {[%emt 0:00:04]} 5. Nc3 {[%emt 0:00:06]} e5 {[%emt 0:00:08]} 6. d3 {[%emt 0:00:08]} Nge7 {[%emt 0:00:05]} 7. h4 {[%emt 0:00:06][%cal Bh2h4,Bh4h5,Bh5h6][%mdl 32]} h6 {[%emt 0:02:53] A37: Symmetrical English vs ...g6: 4 Bg2 Bg7 5 Nf3.} 8. h5 {[%emt 0:00:11] is now debated instead of 8.Bd2.} g5 $1 {[%emt 0:00:06]} 9. Nxg5 {[%emt 0:00:04]} hxg5 {[%emt 0:00:05]} 10. Bxg5 {[%emt 0:00:02] Hoping for h6.} f6 {[%emt 0:07:10]} 11. h6 {[%emt 0:00:06]} fxg5 {[%emt 0:00:34]} 12. hxg7 {[%emt 0:00:10]} Rxh1+ {[%emt 0:02:53]} 13. Bxh1 {[%emt 0:00:03]} Kf7 {[%emt 0:01:48]} 14. e3 {[%emt 0:09:14]} Kxg7 {[%emt 0:06:52]} 15. Qh5 {[%emt 0:00:03][%cal Oh1e4] Be4! would be deadly.} d6 {[%emt 0:07:25]} 16. Be4 {[%emt 0:33:42]} Qh8 {[%emt 0:05:38]} 17. Qxg5+ {[%emt 0:00:24]} Kf7 {[%emt 0:00:02] [#]} 18. Nb5 $146 {[%emt 0:06:38]} (18. Bf3 $11 {remains equal.}) ({Predecessor:} 18. Kd2 Bh3 19. Bf3 Rg8 20. Bh5+ Kf8 21. Qh4 Bg4 22. Rh1 Qxh5 23. Qxh5 Bxh5 24. Rxh5 {½-½ Nihal,S (2620)-Erigaisi,A (2567) Meltwater Indian Qualfier rapid 2021 (1.3)}) 18... Bh3 {[%emt 0:06:20] White must now prevent ...Rg8.} (18... Qf6 19. Qh5+ Kg8 20. g4 $14 (20. Nc7 Rb8 $14)) 19. Kd2 {[%emt 0:28:40] [#]} (19. Nxd6+ $2 Ke6 20. Nxb7 Rg8 21. Bd5+ (21. Nxc5+ $2 Kd6 $19) 21... Nxd5 22. cxd5+ Kf7 23. Nd6+ Kf8 $19) (19. Bf3 $142 Rg8 20. Qh5+ (20. Nxd6+ $2 Ke6 $19) 20... Ke6 21. Qxh8 (21. Bd5+ Kd7 $17) 21... Rxh8 22. Kd2) 19... Rg8 $1 $17 {[%emt 0:01:19]} (19... Rd8 20. Rh1 Rg8 21. Nxd6+ Ke6 22. Qh4 Qxh4 23. gxh4 Kxd6 24. Rxh3 $11) 20. Qh4 {[%emt 0:00:01]} (20. Nxd6+ $2 {too greedy.} Ke6 21. Qh4 Qxh4 22. gxh4 Kxd6 $19) 20... Qxh4 {[%emt 0:00:15]} 21. gxh4 {[%emt 0:00:02] [#]} Ke6 {[%emt 0:00:30]} (21... Rd8 $1 $17 {aiming for ...d5.} 22. Rh1 Bf5) 22. Bd5+ $1 $11 {[%emt 0:00:02]} Nxd5 {[%emt 0:01:53]} 23. cxd5+ {[%emt 0:00:01]} Kd7 {[%emt 0:00:06]} (23... Ke7 $11) 24. dxc6+ $14 {[%emt 0:00:11]} Kxc6 {[%emt 0:00:03][%mdl 4096] Endgame KRB-KRN} 25. Nc3 {[%emt 0:02:41] Rh1 is the strong threat.} ({Don't play} 25. Nxa7+ Kb6 26. h5 (26. Rh1 Bf5 $17) 26... Kxa7 $17) 25... Rg2 {[%emt 0:02:26]} 26. Rh1 {[%emt 0:01:51]} Rxf2+ {[%emt 0:00:15]} 27. Ke1 {[%emt 0:00:01]} Rf3 {[%emt 0:00:01]} 28. Ke2 {[%emt 0:00:17] The position is equal.} Bg4 {[%emt 0:00:04] Strongly threatening ...Rh3+.} 29. Rg1 {[%emt 0:00:11]} Rg3+ {[%emt 0:00:51]} 30. Kf2 {[%emt 0:00:02]} Rf3+ {[%emt 0:00:06]} 31. Ke2 {[%emt 0:00:17]} Rg3+ {[%emt 0:00:28] Weighted Error Value: White=0.16 (very precise) /Black=0.10 (very precise)} 1/2-1/2